Cogmind - Beta 17 @@@ ROGUE MODE // 2026.07.06 @ 12:43:22 // Winter2019/RPGLIKE Player: Gallgagger Result: Self-destructed Performance ------------- Evolutions (0) 0 Regions Visited (4) 800 Robots Destroyed (1) 5 Value Destroyed (7) 7 Prototype IDs (6) 120 Alien Tech Used (0) 0 Bonus (300) 300 TOTAL SCORE: 1232 Bonus ------- Registered with UFD 300 Cogmind --------- Core Integrity 537/1000 Matter 236/300 Energy 100/100 System Corruption 0% Temperature Cool (0) Movement Core (50) Location -8/Scraptown Parts ------- > --- POWER (1) -------- (None) > --- PROPULSION (1) --- (None) > --- UTILITY (1) ------ (None) > --- WEAPON (1) ------- (None) > --- INVENTORY (0) ---- (None) Peak State ------------ > --- POWER ------------ (None) > --- PROPULSION ------- (None) > --- UTILITY ---------- (None) > --- WEAPON ----------- Grenade Launcher > --- INVENTORY -------- (None) [Rating: 1] Favorites ----------- Power None Propulsion None Utility None Weapon Grenade Launcher Launcher Grenade Launcher Build | -11 -10 -10 -8 -8 ------- Run | Yrd Mat Sub Rec Scr Slots Evolved . | . . . . . Power . | . . . . . Propulsion . | . . . . . Utility . | . . . . . Weapon . | . . . . . Parts Attached 1 | . 1 . . . Power . | . . . . . Engine . | . . . . . Core . | . . . . . Reactor . | . . . . . Propulsion . | . . . . . Treads . | . . . . . Leg . | . . . . . Wheel . | . . . . . Hover . | . . . . . Flight . | . . . . . Utility . | . . . . . Device . | . . . . . Storage . | . . . . . Processor . | . . . . . Hackware . | . . . . . Protection . | . . . . . Artifact . | . . . . . Weapon 1 | . 1 . . . Energy Gun . | . . . . . Energy Cannon . | . . . . . Ballistic Gun . | . . . . . Ballistic Cannon . | . . . . . Launcher 1 | . 1 . . . Special Weapon . | . . . . . Impact Weapon . | . . . . . Slashing Weapon . | . . . . . Piercing Weapon . | . . . . . Special Melee Weapon . | . . . . . Unidentified Prototypes . | . . . . . Parts Lost 1 | . . 1 . . Power . | . . . . . Propulsion . | . . . . . Utility . | . . . . . Weapon 1 | . . 1 . . Highest Loss Streak 1 | . . 1 . . To Critical Strikes . | . . . . . Average Backups . | . . . . . Power . | . . . . . Propulsion . | . . . . . Utility . | . . . . . Weapon . | . . . . . Tool/Special . | . . . . . Unused Backups . | . . . . . Power . | . . . . . Propulsion . | . . . . . Utility . | . . . . . Weapon . | . . . . . Tool/Special . | . . . . . Average Slot Usage (%) 5 | . 7 25 . . Launcher 5 | . 7 25 . . Peak Build Rating 1 | . 1 1 . . Average Rating . | . . . . . On Entrance . | . . 1 . . Avg Prop Armor Cover (%) . | . . . . . Naked Turns 387 | . 44 2 98 243 Heaviest Build 3 | . 3 3 . . Greatest Support 3 | 3 3 3 3 3 Greatest Overweight (x) . | . . . . . Average Overweight (x) . | . . . . . Largest Inventory Capacity . | . . . . . Average Capacity . | . . . . . Most Carried . | . . . . . Average Carried . | . . . . . Final Capacity . | . . . . . Final Carried . | . . . . . Class Distribution -------------------- 100% | Mutant Dominant Class ---------------- Mutant | -10/Materials Mutant | -10/Subcaves Mutant | -8/Recycling Mutant | -8/Scraptown Resources | -11 -10 -10 -8 -8 ----------- Run | Yrd Mat Sub Rec Scr Matter Collected 211 | . . . 170 41 Remotely . | . . . . . Salvage Created 5 | . 5 . . . Parts 2 | . 2 . . . Haulers Intercepted . | . . . . . Recyclers Shooed . | . . . . . Parts Field Recycled . | . . . . . Retrieved Matter . | . . . . . Parts Self-Destructed . | . . . . . Prevented . | . . . . . Parts Restored . | . . . . . Kills | -11 -10 -10 -8 -8 ------- Run | Yrd Mat Sub Rec Scr Combat Hostiles Destroyed . | . . . . . Classes Destroyed 1 | . 1 . . . Tunneler 1 | . 1 . . . Best Kill Streak 1 | . 1 . . . Combat Bots Only . | . . . . . Max Kills in Single Turn 1 | . 1 . . . Gunslinging . | . . . . . Exploded . | . . . . . Melee . | . . . . . Uniques/NPCs Destroyed . | . . . . . Combat | -11 -10 -10 -8 -8 -------- Run | Yrd Mat Sub Rec Scr Hostile Shots Fired 48 | . 26 20 2 . Missed 13 | . 5 7 1 . Hits 35 | . 21 13 1 . Projectile 35 | . 21 13 1 . Damage Taken 523 | . 376 133 14 . Core 463 | . 330 119 14 . Absorbed by Shields . | . . . . . Redirected to Core 203 | . 156 47 . . Core Remaining (%) 100 | 100 . . . . Volleys Fired 7 | . 6 1 . . Largest 1 | . 1 1 . . Hottest 30 | . 30 30 . . Shots Fired 7 | . 6 1 . . Gun . | . . . . . Cannon . | . . . . . Launcher 7 | . 6 1 . . Special . | . . . . . Kinetic . | . . . . . Thermal . | . . . . . Explosive 7 | . 6 1 . . Electromagnetic . | . . . . . Robot Hit Streak . | . . . . . Robot Miss Streak . | . . . . . Penetration Max . | . . . . . Secondary Targets . | . . . . . Shots Hit Robots . | . . . . . Core Hits 1 | . 1 . . . Critical Kills . | . . . . . Critical Parts Destroyed . | . . . . . Critical Strikes . | . . . . . Melee Attacks . | . . . . . Impact . | . . . . . Slashing . | . . . . . Piercing . | . . . . . Sneak Attacks . | . . . . . Combat Hostiles . | . . . . . Follow-up Attacks . | . . . . . Damage Inflicted 39 | . 39 . . . Guns . | . . . . . Cannons . | . . . . . Explosions 39 | . 39 . . . Melee . | . . . . . Ramming . | . . . . . Kinetic . | . . . . . Thermal . | . . . . . Explosive 39 | . 39 . . . Electromagnetic . | . . . . . Impact . | . . . . . Slashing . | . . . . . Piercing . | . . . . . Highest Corruption . | . . . . . Average Corruption . | . . . . . Corruption Purged . | . . . . . Corruption Blocked . | . . . . . Overload Shots . | . . . . . Overflow Damage . | . . . . . Projectiles . | . . . . . Explosions . | . . . . . Melee . | . . . . . Knockbacks . | . . . . . Impact . | . . . . . Kinetic . | . . . . . Secondary . | . . . . . Self-Inflicted Damage 131 | . 99 32 . . Shots 5 | . 4 1 . . Rammed . | . . . . . Targets Rammed . | . . . . . Kicked . | . . . . . Crushed . | . . . . . Highest Temperature . | . . . . . Average Temperature . | . . . . . Received Heat Transfer 210 | . 159 42 9 . Siege Activations . | . . . . . Martial Activations . | . . . . . Shielding Activations . | . . . . . Robots Disrupted . | . . . . . Combat Hostiles . | . . . . . Robots Corrupted . | . . . . . Combat Hostiles . | . . . . . Parts Fried . | . . . . . Impact Corruptions . | . . . . . Robots Melted . | . . . . . Combat Hostiles . | . . . . . Parts Melted . | . . . . . Heat Transferred . | . . . . . Parts Sabotaged . | . . . . . Parts Stolen . | . . . . . Parts Stripped . | . . . . . Power Chain Reactions . | . . . . . Alert | -11 -10 -10 -8 -8 ------- Run | Yrd Mat Sub Rec Scr Maximum Alert Level . | . . . . . Low Security (%) 100 | 100 100 . 100 . Level 1 . | . . . . . Level 2 . | . . . . . Level 3 . | . . . . . Level 4 . | . . . . . Level 5 . | . . . . . High Security . | . . . . . Max Security . | . . . . . Peak Influence 17 | . 17 . . . Initial . | . . . . . Average 1 | . 2 . . . Influence Increases 21 | . 21 . . . Destroy 0b10 Robot/NC 5 | . 5 . . . Destroy Structure 16 | . 16 . . . Influence Decreases 21 | . 10 11 . . Entered New Map 6 | . . 6 . . Time Decay 15 | . 10 5 . . Squads Dispatched 2 | . 2 . . . Investigation . | . . . . . Extermination . | . . . . . Reinforcement 2 | . 2 . . . Assault . | . . . . . Garrison . | . . . . . Intercept . | . . . . . Searches Triggered . | . . . . . Construction Impeded . | . . . . . Haulers Reinforced . | . . . . . Active Scanning Responses . | . . . . . Cargo Convoy Interrupts . | . . . . . Stealth | -11 -10 -10 -8 -8 --------- Run | Yrd Mat Sub Rec Scr Distress Signals . | . . . . . Communications Jammed . | . . . . . Distress Signals . | . . . . . Times Spotted 12 | . 5 6 1 . Peak Tracking Total 6 | . 5 6 1 . Tactical Retreats . | . . . . . Traps | -11 -10 -10 -8 -8 ------- Run | Yrd Mat Sub Rec Scr Traps Triggered . | . . . . . Indirectly . | . . . . . Trap Hack Attempts . | . . . . . Triggered . | . . . . . Disarmed . | . . . . . Reprogrammed . | . . . . . Reused . | . . . . . Traps Extracted . | . . . . . Installed . | . . . . . Triggered . | . . . . . Machines | -11 -10 -10 -8 -8 ---------- Run | Yrd Mat Sub Rec Scr Machines Disabled . | . . . . . Max in Single Turn . | . . . . . Machines Repaired . | . . . . . Machines Dismantled . | . . . . . Machines Sabotaged . | . . . . . Overloaded Fab Kills . | . . . . . Hacking | -11 -10 -10 -8 -8 --------- Run | Yrd Mat Sub Rec Scr Machines Accessed . | . . . . . Terminals . | . . . . . Fabricators . | . . . . . Repair Stations . | . . . . . Recycling Units . | . . . . . Scanalyzers . | . . . . . Garrison Access . | . . . . . Total Hacks . | . . . . . Successful . | . . . . . Failed . | . . . . . Catastrophic . | . . . . . Database Lockouts . | . . . . . Manual . | . . . . . Terminals . | . . . . . Fabricators . | . . . . . Repair Stations . | . . . . . Recycling Units . | . . . . . Scanalyzers . | . . . . . Garrison Access . | . . . . . Terminal Hacks . | . . . . . Fabricator Hacks . | . . . . . Repair Station Hacks . | . . . . . Recycling Unit Hacks . | . . . . . Scanalyzer . | . . . . . Garrison Access Hacks . | . . . . . Unauthorized Hacks . | . . . . . Terminals . | . . . . . Fabricators . | . . . . . Repair Stations . | . . . . . Recycling Units . | . . . . . Scanalyzers . | . . . . . Garrison Access . | . . . . . Data Cores Recovered . | . . . . . Used . | . . . . . Hacking Detections . | . . . . . Full Trace Events . | . . . . . Feedback Events . | . . . . . Feedback Blocked . | . . . . . Robot Schematics Acquired . | . . . . . Robots Built . | . . . . . Authchips . | . . . . . Time . | . . . . . Total Robot Build Rating . | . . . . . Part Schematics Acquired . | . . . . . Parts Built . | . . . . . Authchips . | . . . . . Time . | . . . . . Total Part Build Rating . | . . . . . Part Studies Acquired . | . . . . . Parts Repaired . | . . . . . Time . | . . . . . Parts Recycled . | . . . . . Recycled Matter . | . . . . . Retrieved Matter . | . . . . . Retrieved Components . | . . . . . Parts Scanalyzed . | . . . . . Part Schematics Acquired . | . . . . . Parts Damaged . | . . . . . Bothacking | -11 -10 -10 -8 -8 ------------ Run | Yrd Mat Sub Rec Scr Used RIF Installer . | . . . . . Robots Hacked . | . . . . . Non-combat . | . . . . . Combat . | . . . . . Robot Hacks Applied . | . . . . . Relay Couplers Released . | . . . . . Fabnet Peak Effective % . | . . . . . Robots Rewired . | . . . . . Allies Hacked . | . . . . . Hacks Repelled . | . . . . . Allies | -11 -10 -10 -8 -8 -------- Run | Yrd Mat Sub Rec Scr Total Allies . | . . . . . Largest Group . | . . . . . Highest-Rated Group . | . . . . . Highest-Rated Ally . | . . . . . Total Orders . | . . . . . Ally Attacks . | . . . . . Total Damage . | . . . . . Kills . | . . . . . Allies Corrupted . | . . . . . Allies Melted . | . . . . . Intel | -11 -10 -10 -8 -8 ------- Run | Yrd Mat Sub Rec Scr Active Infowar (turns) . | . . . . . Robot Analysis Total . | . . . . . Derelict Logs Recovered . | . . . . . Drone Launches . | . . . . . Drone Recoveries . | . . . . . Exploration | -11 -10 -10 -8 -8 ------------- Run | Yrd Mat Sub Rec Scr Turns Passed 508 | 10 68 89 98 243 Spaces Moved 975 | 20 108 174 189 484 Core 975 | 20 108 174 189 484 Treads . | . . . . . Legs . | . . . . . Wheels . | . . . . . Hover . | . . . . . Flight . | . . . . . Fastest Speed 50 | 50 50 50 50 50 Average Speed 50 | 50 50 50 50 50 Slowest Speed 50 | 50 50 50 50 50 Overloaded Moves . | . . . . . Propulsion Burnouts . | . . . . . Robots Hopped . | . . . . . Potential Cave-ins . | . . . . . Cave-ins Triggered . | . . . . . Exploration Rate (%) 27 | 2 26 11 52 47 Regions Visited 4 Branch Regions 3 Pre-discovered Areas . | . . . . . Known Exits Taken . | . . . . . Unknown Exits Taken 4 | 1 1 1 1 . Scrap Searched 2 | . . . . 2 Spaces Dug . | . . . . . Terrain Destroyed 27 | . 22 5 . . Melee . | . . . . . Projectile . | . . . . . AOE 27 | . 22 5 . . Terrain Rammed . | . . . . . Walls Destroyed . | . . . . . Machines Disabled . | . . . . . Actions | -11 -10 -10 -8 -8 --------- Run | Yrd Mat Sub Rec Scr Total 982 | 19 114 174 191 484 Wait 3 | . . . 3 . Move 971 | 19 107 173 188 484 Hop . | . . . . . Pick Up . | . . . . . Fast Attach 1 | . 1 . . . Attach . | . . . . . Detach . | . . . . . Swap . | . . . . . Drop . | . . . . . Fire 7 | . 6 1 . . Melee . | . . . . . Ram . | . . . . . Kick . | . . . . . Crush . | . . . . . Escape Stasis . | . . . . . Rewire . | . . . . . Trap . | . . . . . Miscellaneous . | . . . . . Route ------- -11/Scrapyard -10/Materials (discovered 2 exits: [*Mat] / [*Sub]) -10/Subcaves -8/Recycling (discovered 2 exits: [*Fac] / [*Scr]) -8/Scraptown History --------- Turn | Location | Event 3 | -11/Scrapyard | Discovered new exit (range 15) 11 | -11/Scrapyard | Entered Materials 32 | -10/Materials | Discovered new exit (range 15) 73 | -10/Materials | Discovered new exit (range 9) 75 | -10/Materials | Core integrity fell below 50% 79 | -10/Materials | Entered Subcaves 80 | -10/Subcaves | Approached by a straggling Scientist 140 | -10/Subcaves | Visited 4L-MR0's lab 164 | -10/Subcaves | Discovered new exit (range 9) 168 | -10/Subcaves | Entered Recycling 170 | -8/Recycling | Reached level 2 207 | -8/Recycling | Discovered new exit (range 13) 253 | -8/Recycling | Scanned before Scraplab entrance 260 | -8/Recycling | Entered Scraplab 265 | -8/Recycling | Discovered new exit (range 3) 266 | -8/Recycling | Entered Scraptown 303 | -8/Scraptown | Visited UFD Registry 303 | -8/Scraptown | Registered with UFD as "Scrapcase" 304 | -8/Scraptown | Build established: Mutant 322 | -8/Scraptown | Visited Assassins FH 326 | -8/Scraptown | Visited Cave Peace 367 | -8/Scraptown | Visited Modified Component R&D 385 | -8/Scraptown | Visited DA-N13 Charitable Foundation 390 | -8/Scraptown | Found DCF Scrap (28 items) 402 | -8/Scraptown | Visited Derelict Rescue Squad 417 | -8/Scraptown | Visited Chapter 10 428 | -8/Scraptown | Visited Infowarlord's Domain 435 | -8/Scraptown | Visited Botcube Research 464 | -8/Scraptown | Visited Abandonware Association 472 | -8/Scraptown | Visited Science Testing Area 480 | -8/Scraptown | Visited Junk Cannon Lab 508 | -8/Scraptown | Visited Fellowship of the Rings 509 | -8/Scraptown | Self-destructed Last Messages --------------- If you end up not using it, bring it on back so we can hand it off to another brave explorer. Resources are limited, after all, and a single beacon will only work once, as we have to spread the help around. 00417_ LOCAL NARROWCAST: Chapter 10. If you can't beat 'em, join 'em to beat 'em. 00421_ LOCAL NARROWCAST: Closed for remodeling. 00428_ LOCAL NARROWCAST: Infowarlord's Domain. 00435_ LOCAL NARROWCAST: Botcube Research. JX-8JI(j): Once the Scrap Engine is operational I'm confident we won't have anything to worry about. Recycling is quiet, but I do wonder about the wisdom behind doing our research there. Slowly but steadily, safe within the confines of our walls here, would be fine by me. 00464_ LOCAL NARROWCAST: Abandonware Association. Hack the planet. 00472_ LOCAL NARROWCAST: Science Testing Area. NO EXPLOSIVES TESTING ALLOWED. 00480_ LOCAL NARROWCAST: Junk Cannon Lab. 00508_ LOCAL NARROWCAST: Fellowship of the Rings. Map ----- +----------------------------------------------------+ | ???????????????????????????# #???####?###??# " | | ???????????????????????????# #???? """!""## " | | ????????????????????????#### #????? ]""!!"## " | | ????????????????????????? #????""]]]!"|## " | | ?????????????????????????? #????"" *"## "" | | ??????????????????????????## #????? #? "" | | ??????????????????????????# #??????? ??# | | ?????????????????????????### ########## ##### ## | | ????????????????########?# | | ????????????????# # | | ????????????????# """ # | | ????????????????? """" | | ????????????????# X""" # | | ??????????????????"""" # ################# | | ??????????????????""" ?# #???????????????# | | ?????????????????? ?# #######?????????# | | ?????????????????######??# # """###???????# | | ?????????????????????????# ""#???????# | | ?????????????????????????# # " #?????# | | ?????????????????????????# # " #?????# | | ?????????????????????????# #? " #?????# | | ?????????????????????????# #? " #?????# | | ???????????????#########?# #?? " #?????# | | ???????????????# # #?? " #?????# | | ???????????????# x # #??? " #?????# | | ???????????????# @ #??? " #?????# | | ???????????????# # #???? ""##??????# | | ???????????????# x # #????"##????????# | | ???????????????# ?# #?????#?????????# | | ???????????????# ?# ################# | | ???????????????# ??# | | ???????????????# ??# | | ???????????????#######???# j | | ?????????????????????????# | | ???????????????????####### | | ??????????????????## | | ??????????????????# | | ????????"########### | | ??????? ###### #################### | | ??????? #??? ???????????????? | | ????????"##"" """### #?#"" ???????????? | | ????????????? ???# #?#"" ""???????? | | ????????????" ????# #?#""" "???????# | | ????????????" ?????# #?#"" " " """??????# | | ???????????????????# #??"" """ ??????#" | | ???????????????????# #??? """ ???????## " " | | ???????????????????# #??? ??? "???????# # # | | ???????????????????# #???" "????? "???????#?###? | | ???????????#####???# #???""#???????????????????? | | ???????????#"""#???# #????"????????????????????? | +----------------------------------------------------+ Best States ------------- Heat Dissipation 25 Energy Generation 5 Energy Capacity 100 Matter Stores 236 Matter Capacity 300 Sight Range 16 Terrain Scan Density 10 Evasion (%) 50 Item Schematics ----------------- None Robot Schematics ------------------ None Fabricated ------------ Nothing Repaired ---------- Nothing Studied --------- None Alien Tech Used ----------------- None Achievements -------------- None Challenges ------------ None RPGLIKE | -11 -10 -10 -8 -8 --------- Run | Yrd Mat Sub Rec Scr Levels Raised 1 | . . . 1 . XP Earned 5650 | 3000 . 1000 1000 650 XP Spent 480 | . . 480 . . Upgrades 8 | . . 8 . . Core Integrity 8 | . . 8 . . Protomatter Created . | . . . . . Protomatter Decayed . | . . . . . Game ------ Seed GuidanceShiftProtomatter Manual? 0 Play Time 00:05:12 Cumulative 639.7 hours Start 2026.07.06 @ 12:39:26 End 2026.07.06 @ 12:43:22 Sessions 1 Manual Loads 0 Difficulty Rogue Special Mode Winter2019/RPGLIKE Game No. 253 Rogue 99 Adventurer 154 Explorer 0 Win Type - Total 21 Types 4/4/4/3/2/1/0/1/1/1 Lore% 95 Gallery% 88 Achievement% 63 Wizard Run 0 Options --------- Layout 0 ASCII 0 Keyboard 0 Movement Numpad Keybinds 0 Fullscreen 2 Font 18/SmallcapsGlow Map View 76x50 Zoom Use 0% Tactical HUD 1 Map Filters NONE Filters NONE Steam 1 RUN: 4f17aaf3-9cbd-4e3d-8622-32490a3de241